fUST/lending_fUST_20250817
["ID","MTS","AMOUNT","RATE_DAILY","PERIOD"]
[379659079,1755361847141,-480.0,0.00021917,3]
[379659080,1755361847151,-893.52,0.00021917,3]
[379659081,1755361847160,-422.12230926,0.00021917,3]
[379659082,1755361847169,-151.0,0.00021917,2]
[379659083,1755361847180,-151.0,0.00021917,2]
[379659084,1755361847189,-151.0,0.00021917,2]
[379659085,1755361847198,-151.0,0.00021917,2]
[379659086,1755361847207,-151.0,0.00021917,2]
[379659087,1755361847217,-151.0,0.00021917,2]
[379659088,1755361847227,-151.0,0.00021917,2]
[379659089,1755361847236,-151.0,0.00021917,2]
[379659090,1755361847245,-151.0,0.00021917,2]
[379659091,1755361847255,-151.0,0.00021917,2]
[379659092,1755361847264,-151.0,0.00021917,2]
[379659093,1755361847273,-151.0,0.00021917,2]
[379659094,1755361847284,-151.0,0.00021917,2]
[379659095,1755361847294,-151.0,0.00021917,2]
[379659096,1755361847303,-151.0,0.00021917,2]
[379659097,1755361847313,-151.0,0.00021917,2]
[379659098,1755361847322,-151.0,0.00021917,2]
[379659099,1755361847332,-151.0,0.00021917,2]
[379659100,1755361847341,-168.06065,0.00021917,2]
[379659101,1755361847351,-1108.73646,0.00021917,2]
[379659102,1755361847361,-1108.73646,0.00021917,2]
[379659103,1755361847370,-1108.73646,0.00021917,2]
[379659104,1755361847380,-1108.73646,0.00021917,2]
[379659105,1755361847389,-1108.73646,0.00021917,2]
[379659106,1755361847399,-1108.73646,0.00021917,2]
[379659107,1755361847409,-1108.73646,0.00021917,2]
[379659108,1755361847418,-1108.73646,0.00021917,2]
[379659109,1755361847428,-1108.73646,0.00021917,2]
[379659110,1755361847437,-1108.73646,0.00021917,2]
[379659111,1755361847447,-1108.73646,0.00021917,2]
[379659112,1755361847457,-1108.73646,0.00021917,2]
[379659113,1755361847466,-1108.73646,0.00021917,2]
[379659114,1755361847476,-1108.73646,0.00021917,2]
[379659115,1755361847486,-1108.73646,0.00021917,2]
[379659116,1755361847495,-1108.73646,0.00021917,2]
[379659117,1755361847504,-1108.73646,0.00021917,2]
[379659118,1755361847513,-1108.73646,0.00021917,2]
[379659119,1755361847523,-1108.73646,0.00021917,2]
[379659120,1755361847532,-1108.736465,0.00021917,2]
[379659121,1755361847541,-480.0,0.00021917,3]
[379659122,1755361847550,-673.879372,0.00021917,2]
[379659123,1755361847560,-673.879372,0.00021917,2]
[379659124,1755361847569,-673.879372,0.00021917,2]
[379659125,1755361847578,-673.879372,0.00021917,2]
[379659126,1755361847586,-673.879372,0.00021917,2]
[379659127,1755361847595,-673.879372,0.00021917,2]
[379659128,1755361847604,-530.68131931,0.00021917,3]
[379659129,1755361847616,-673.879372,0.00021917,2]
[379659130,1755361847625,-690.83,0.00021917,3]
[379659131,1755361847633,-673.879372,0.00021917,2]
[379659132,1755361847643,-673.879372,0.00021917,2]
[379659133,1755361847652,-673.879372,0.00021917,2]
[379659134,1755361847661,-673.879372,0.00021917,2]
[379659135,1755361847670,-673.879372,0.00021917,2]
[379659136,1755361847679,-673.879372,0.00021917,2]
[379659137,1755361847689,-673.879372,0.00021917,2]
[379659138,1755361847698,-673.879372,0.00021917,2]
[379659139,1755361847707,-673.879372,0.00021917,2]
[379659140,1755361847717,-673.879372,0.00021917,2]
[379659141,1755361847727,-302.975426,0.00021917,2]
[379659142,1755361847737,-302.975426,0.00021917,2]
[379659143,1755361847747,-673.879372,0.00021917,2]
[379659144,1755361847756,-302.975426,0.00021917,2]
[379659145,1755361847766,-673.879372,0.00021917,2]
[379659146,1755361847776,-302.975426,0.00021917,2]
[379659147,1755361847788,-673.879367,0.00021917,2]
[379659148,1755361847798,-302.975426,0.00021917,2]
[379659149,1755361847808,-302.975426,0.00021917,2]
[379659150,1755361847817,-302.975426,0.00021917,2]
[379659151,1755361847827,-302.975426,0.00021917,2]
[379659152,1755361847837,-302.975426,0.00021917,2]
[379659153,1755361847847,-302.975426,0.00021917,2]
[379659154,1755361847857,-302.975426,0.00021917,2]
[379659155,1755361847867,-302.975426,0.00021917,2]
[379659156,1755361847877,-302.975426,0.00021917,2]
[379659157,1755361847886,-302.975426,0.00021917,2]
[379659158,1755361847896,-302.975426,0.00021917,2]
[379659159,1755361847905,-302.975426,0.00021917,2]
[379659160,1755361848066,-480.0,0.00021917,3]
[379659161,1755361848077,-302.975426,0.00021917,2]
[379659162,1755361848087,-302.975426,0.00021917,2]
[379659163,1755361848105,-302.975426,0.00021917,2]
[379659164,1755361848115,-302.97543,0.00021917,2]
[379659165,1755361848124,-480.0,0.00021917,3]
[379659166,1755361848134,-480.0,0.00021917,3]
[379659167,1755361848146,-480.0,0.00021917,3]
[379659168,1755361848157,-480.0,0.00021917,3]
[379659169,1755361848167,-480.0,0.00021917,3]
[379659170,1755361848177,-480.0,0.00021917,3]
[379659171,1755361848187,-480.0,0.00021917,3]
[379659172,1755361848196,-437.90615758,0.00021917,3]
[379659173,1755361848206,-480.0,0.00021917,3]
[379659174,1755361848215,-480.0,0.00021917,3]
[379659175,1755361848225,-480.0,0.00021917,3]
[379659176,1755361848235,-366.34210453,0.00021917,3]
[379659177,1755361848244,-480.0,0.00021917,3]
[379659178,1755361848254,-480.0,0.00021917,3]
[379659179,1755361848263,-416.74840796,0.00021917,3]
[379659180,1755361848273,-537.9,0.00021917,3]
[379659181,1755361848284,-400.0,0.00021917,3]
[379659182,1755361848293,-480.0,0.00021917,3]
[379659183,1755361848303,-480.0,0.00021917,3]
[379659184,1755361848312,-480.0,0.00021917,3]
[379659185,1755361848321,-618.38,0.00021917,3]
[379659186,1755361848331,-480.0,0.00021917,3]
[379659187,1755361848340,-480.0,0.00021917,3]
[379659188,1755361848350,-660.56,0.00021917,3]
[379659189,1755361848359,-820.57,0.00021917,3]
[379659190,1755361848369,-480.0,0.00021917,3]
[379659191,1755361848378,-480.0,0.00021917,3]
[379659192,1755361848387,-480.0,0.00021917,3]
[379659193,1755361848397,-739.43,0.00021917,3]
[379659194,1755361848406,-480.0,0.00021917,3]
[379659195,1755361848415,-480.0,0.00021917,3]
[379659196,1755361848425,-559.46,0.00021917,3]
[379659197,1755361848434,-480.0,0.00021917,3]
[379659198,1755361848444,-480.0,0.00021917,3]
[379659199,1755361848453,-686.86,0.00021917,3]
[379659200,1755361848463,-480.0,0.00021917,3]
[379659201,1755361848472,-4451.04,0.00021917,3]
[379659202,1755361848482,-400.0,0.00021917,3]
[379659203,1755361848491,-480.0,0.00021917,3]
[379659204,1755361848501,-627.27139087,0.00021917,3]
[379659205,1755361848510,-460.0,0.00021917,3]
[379659206,1755361848519,-480.0,0.00021917,3]
[379659207,1755361848529,-480.0,0.00021917,3]
[379659208,1755361848538,-42.86917957,0.00021917,3]
[379659209,1755361848737,-544.69241561,0.00021917,3]
[379659210,1755361848754,-354.71840482,0.00021917,3]
[379659211,1755361848763,-480.0,0.00021917,3]
[379659212,1755361848772,-165.28159518,0.00021917,3]
[379659213,1755361884975,1802.82895272,0.00020087,2]
[379659216,1755361934884,328.49136516,0.00020087,2]
[379659219,1755361944882,5813.8352931,0.00020053,2]
[379659230,1755362180157,943.1134774,0.00019767,2]
[379659232,1755362188585,10159.999999,0.0002876,120]
[379659233,1755362211969,188.2507027,0.00019895,2]
[379659234,1755362250319,345.823171,0.00013699,2]
[379659235,1755362352237,188.0143272,0.00019706,2]
[379659239,1755362422579,162.79612135,0.00019889,2]
[379659245,1755362470575,363.0518047,0.00019646,2]
[379659247,1755362528685,376.977448,0.00019582,2]
[379659248,1755362528971,1640.50904421,0.00019838,2]
[379659249,1755362529300,336.320504,0.00019875,2]
[379659250,1755362529669,264.812483,0.00019935,2]
[379659251,1755362530025,264.812483,0.00019945,2]
[379659254,1755362667158,10000.0,0.00019582,2]
[379659255,1755362680162,292.06215301,0.00019119,2]
[379659257,1755362904209,-345.823171,0.00020187,2]
[379659258,1755362904743,-308.52621004,0.00020285,2]
[379659259,1755362904773,-151.15445482,0.00020385,2]
[379659260,1755362904802,-151.15445482,0.00020425,2]
[379659261,1755362904830,-151.15445482,0.00020466,2]
[379659262,1755362904858,-151.15445482,0.00020506,2]
[379659263,1755362904886,-151.15445482,0.00020547,2]
[379659264,1755362904914,-242.92777524,0.00020585,2]
[379659265,1755362904942,-242.9277752,0.00020586,2]
[379659266,1755362904970,-242.9277752,0.00020586,2]
[379659267,1755362904998,-242.9277752,0.00020587,2]
[379659268,1755362905025,-151.15445482,0.00020587,2]
[379659269,1755362909138,242.9277752,0.00020587,2]
[379659272,1755362943811,300.0,0.00020684,2]
[379659276,1755362970291,2203.2795002,0.00020587,2]
[379659277,1755362974872,2187.818303,0.00020585,2]
[379659278,1755362974898,27.66720108,0.00020585,2]
[379659283,1755363002559,300.0,0.00020684,2]
[379659284,1755363002816,300.0,0.00020684,2]
[379659285,1755363002843,9372.33279892,0.00020685,2]
[379659286,1755363002865,10000.0,0.00020685,2]
[379659287,1755363002885,10000.0,0.00020685,2]
[379659288,1755363002906,10000.0,0.00020685,2]
[379659289,1755363002927,10000.0,0.00020685,2]
[379659290,1755363002949,627.66720108,0.00020685,2]
[379659291,1755363002992,300.0,0.00020684,2]
[379659292,1755363003020,300.0,0.00020684,2]
[379659293,1755363003162,300.0,0.00020684,2]
[379659294,1755363010360,1200.0,0.00020684,2]
[379659304,1755363031926,-250.0,0.00020685,2]
[379659306,1755363031937,-500.0,0.00020685,2]
[379659308,1755363031947,-500.0,0.00020685,2]
[379659310,1755363031956,-500.0,0.00020685,2]
[379659311,1755363031966,-500.0,0.00020685,2]
[379659312,1755363031976,-350.66475896,0.00020685,2]
[379659313,1755363031986,-500.0,0.00020685,2]
[379659314,1755363031995,-500.0,0.00020685,2]
[379659315,1755363032005,-398.84310519,0.00020685,2]
[379659316,1755363032015,-500.0,0.00020685,2]
[379659317,1755363032024,-587.67832864,0.00020685,2]
[379659318,1755363032033,-500.0,0.00020685,2]
[379659319,1755363032042,-500.0,0.00020685,2]
[379659320,1755363032051,-500.0,0.00020685,2]
[379659321,1755363032060,-500.0,0.00020685,2]
[379659322,1755363032070,-500.0,0.00020685,2]
[379659323,1755363032079,-577.05812954,0.00020685,2]
[379659325,1755363032091,-342.0763304,0.00020685,2]
[379659329,1755363032122,-157.9236696,0.00020685,2]
[379659331,1755363032131,-260.30000015,0.00020685,2]
[379659334,1755363032154,-239.69999985,0.00020685,2]
[379659337,1755363032164,-500.0,0.00020685,2]
[379659339,1755363032174,-500.0,0.00020685,2]
[379659342,1755363032184,-500.0,0.00020685,2]
[379659345,1755363032194,-500.0,0.00020685,2]
[379659348,1755363032205,-500.0,0.00020685,2]
[379659350,1755363032216,-500.0,0.00020685,2]
[379659352,1755363032226,-500.0,0.00020685,2]
[379659354,1755363032235,-577.75397059,0.00020685,2]
[379659356,1755363032244,-500.0,0.00020685,2]
[379659358,1755363032253,-182.74988875,0.00020685,2]
[379659360,1755363032263,-411.63969358,0.00020685,2]
[379659362,1755363032272,-500.0,0.00020685,2]
[379659364,1755363032282,-500.0,0.00020685,2]
[379659366,1755363032291,-153.46062096,0.00020685,2]
[379659368,1755363032301,-500.0,0.00020685,2]
[379659370,1755363032311,-1200.0,0.00020687,2]
[379659372,1755363032320,-255.7410061,0.0002069,2]
[379659374,1755363032330,-36770.1994016,0.00020867,2]
[379659376,1755363032342,-200.0,0.000212,2]
[379659378,1755363032352,-486.34,0.00021247,2]
[379659380,1755363032361,-232.11368524,0.0002125,2]
[379659382,1755363032371,-160.0,0.0002125,2]
[379659384,1755363032381,-843.58077381,0.00021256,2]
[379659386,1755363032391,-168.0,0.00021365,2]
[379659388,1755363032400,-168.0,0.00021545,2]
[379659390,1755363032410,-168.0,0.00021546,2]
[379659392,1755363032422,-151.0,0.00021567,3]
[379659394,1755363032432,-156.870479,0.0002157,5]
[379659396,1755363032441,-168.0,0.00021579,2]
[379659398,1755363032451,-255.0,0.00021589,2]
[379659400,1755363032461,-1000.0,0.000216,2]
[379659402,1755363032471,-2203.27950016,0.00021609,2]
[379659404,1755363032480,-580.575816,0.00021644,2]
[379659406,1755363032490,-580.575816,0.00021644,2]
[379659408,1755363032501,-580.575816,0.00021644,2]
[379659410,1755363032511,-580.575816,0.00021644,2]
[379659412,1755363032520,-580.575816,0.00021644,2]
[379659414,1755363032530,-168.0,0.0002171,2]
[379659416,1755363032539,-151.0,0.0002178,3]
[379659418,1755363032548,-462.1417622,0.00021814,2]
[379659420,1755363032557,-160.0,0.00021814,2]
[379659422,1755363032570,-2728.60622475,0.00021817,2]
[379659424,1755363032584,-1000.0,0.00021817,2]
[379659426,1755363032595,-168.0,0.00021872,2]
[379659428,1755363032604,-28.42809883,0.000219,2]
[379659430,1755363032616,-122.70005017,0.000219,2]
[379659432,1755363032625,-151.203,0.00021905,2]
[379659434,1755363032633,-874.12609358,0.00021917,2]
[379659436,1755363032643,-422.167728,0.00021917,2]
[379659438,1755363032652,-422.167728,0.00021917,2]
[379659440,1755363032661,-422.167728,0.00021917,2]
[379659442,1755363032671,-422.167728,0.00021917,2]
[379659444,1755363032680,-422.167728,0.00021917,2]
[379659446,1755363032689,-422.167728,0.00021917,2]
[379659448,1755363032698,-422.167728,0.00021917,2]
[379659449,1755363032707,-422.167728,0.00021917,2]
[379659451,1755363032717,-422.167728,0.00021917,2]
[379659453,1755363032726,-422.167728,0.00021917,2]
[379659455,1755363032736,-422.167728,0.00021917,2]
[379659457,1755363032745,-422.167728,0.00021917,2]
[379659459,1755363032755,-422.167728,0.00021917,2]
[379659461,1755363032764,-422.167728,0.00021917,2]
[379659463,1755363032774,-422.167728,0.00021917,2]
[379659465,1755363032784,-422.167728,0.00021917,2]
[379659467,1755363032793,-422.167728,0.00021917,2]
[379659469,1755363032803,-422.167728,0.00021917,2]
[379659471,1755363032812,-422.167728,0.00021917,2]
[379659473,1755363032821,-422.167721,0.00021917,2]
[379659475,1755363032831,-1181.438305,0.00021917,2]
[379659477,1755363032840,-1181.438305,0.00021917,2]
[379659479,1755363032850,-1181.438305,0.00021917,2]
[379659481,1755363032859,-1181.438305,0.00021917,2]
[379659483,1755363032869,-1181.438305,0.00021917,2]
[379659485,1755363032878,-1181.438305,0.00021917,2]
[379659487,1755363032887,-1181.438305,0.00021917,2]
[379659489,1755363032898,-1181.438305,0.00021917,2]
[379659491,1755363032908,-1181.438305,0.00021917,2]
[379659493,1755363032918,-1181.438305,0.00021917,2]
[379659495,1755363032927,-1181.438305,0.00021917,2]
[379659497,1755363032936,-1064.22771084,0.00021917,2]
[379659567,1755363037927,-217.0811911,0.00021817,2]
[379659569,1755363037937,-117.21059416,0.00021917,2]
[379659571,1755363037946,-1181.438305,0.00021917,2]
[379659573,1755363037955,-1181.438305,0.00021917,2]
[379659575,1755363037964,-1181.438305,0.00021917,2]
[379659577,1755363037974,-1181.438305,0.00021917,2]
[379659579,1755363037983,-1181.438305,0.00021917,2]
[379659581,1755363037992,-1181.438305,0.00021917,2]
[379659582,1755363038002,-1181.438305,0.00021917,2]
[379659585,1755363038012,-1181.438296,0.00021917,2]
[379659587,1755363038021,-151.0,0.00021917,2]
[379659589,1755363038032,-151.0,0.00021917,2]
[379659591,1755363038041,-151.0,0.00021917,2]
[379659593,1755363038051,-151.0,0.00021917,2]
[379659595,1755363038060,-151.0,0.00021917,2]
[379659596,1755363038069,-151.0,0.00021917,2]
[379659598,1755363038079,-151.0,0.00021917,2]
[379659600,1755363038088,-151.0,0.00021917,2]
[379659603,1755363038101,-151.0,0.00021917,2]
[379659604,1755363038111,-225.01,0.00021917,2]
[379659605,1755363038282,-597.846685,0.00021917,2]
[379659606,1755363038292,-597.846685,0.00021917,2]
[379659607,1755363038301,-597.846685,0.00021917,2]
[379659608,1755363038311,-597.846685,0.00021917,2]
[379659609,1755363038320,-331.18271432,0.00021917,3]
[379659610,1755363038329,-460.0,0.00021917,3]
[379659611,1755363038339,-480.0,0.00021917,3]
[379659612,1755363038350,-480.0,0.00021917,3]
[379659613,1755363038360,-480.0,0.00021917,3]
[379659614,1755363038372,-480.0,0.00021917,3]
[379659615,1755363038385,-151.0,0.00021917,2]
[379659616,1755363038405,-151.0,0.00021917,2]
[379659617,1755363038430,-151.0,0.00021917,2]
[379659618,1755363038440,-151.0,0.00021917,2]
[379659619,1755363038449,-151.0,0.00021917,2]
[379659621,1755363038459,-267.430959,0.00021917,2]
[379659623,1755363038468,-480.0,0.00021917,3]
[379659625,1755363038477,-480.0,0.00021917,3]
[379659627,1755363038486,-480.0,0.00021917,3]
[379659629,1755363038496,-480.0,0.00021917,3]
[379659631,1755363038505,-480.0,0.00021917,3]
[379659633,1755363038515,-480.0,0.00021917,3]
[379659635,1755363038524,-152.916725,0.00021917,2]
[379659637,1755363038534,-152.916725,0.00021917,2]
[379659639,1755363038543,-480.0,0.00021917,3]
[379659641,1755363038554,-152.916725,0.00021917,2]
[379659643,1755363038563,-476.11514471,0.00021917,3]
[379659645,1755363038572,-152.916725,0.00021917,2]
[379659647,1755363038581,-460.0,0.00021917,3]
[379659649,1755363038590,-397.65643213,0.00021917,3]
[379659651,1755363038600,-652.58,0.00021917,3]
[379659653,1755363038609,-480.0,0.00021917,3]
[379659655,1755363038618,-628.35510715,0.00021917,3]
[379659657,1755363038627,-151.0,0.00021917,2]
[379659659,1755363038636,-151.0,0.00021917,2]
[379659661,1755363038645,-480.0,0.00021917,3]
[379659663,1755363038655,-480.0,0.00021917,3]
[379659665,1755363038664,-151.0,0.00021917,2]
[379659667,1755363038673,-151.0,0.00021917,2]
[379659669,1755363038683,-480.0,0.00021917,3]
[379659671,1755363038692,-882.63,0.00021917,3]
[379659673,1755363038701,-480.0,0.00021917,3]
[379659675,1755363038710,-480.0,0.00021917,3]
[379659677,1755363038719,-480.0,0.00021917,3]
[379659679,1755363038728,-480.0,0.00021917,3]
[379659681,1755363038737,-338.112919,0.00021917,2]
[379659683,1755363038747,-338.112919,0.00021917,2]
[379659685,1755363038756,-480.0,0.00021917,3]
[379659687,1755363038765,-338.112919,0.00021917,2]
[379659689,1755363038774,-338.112919,0.00021917,2]
[379659691,1755363038784,-393.50303492,0.00021917,3]
[379659693,1755363038794,-480.0,0.00021917,3]
[379659695,1755363038803,-480.0,0.00021917,3]
[379659697,1755363038813,-480.0,0.00021917,3]
[379659699,1755363038822,-480.0,0.00021917,3]
[379659701,1755363038832,-480.0,0.00021917,3]
[379659703,1755363038842,-553.46,0.00021917,3]
[379659705,1755363038851,-480.0,0.00021917,3]
[379659707,1755363038861,-440.0,0.00021917,3]
[379659709,1755363038870,-440.0,0.00021917,3]
[379659711,1755363038879,-460.0,0.00021917,3]
[379659713,1755363038889,-480.0,0.00021917,3]
[379659716,1755363038898,-480.0,0.00021917,3]
[379659717,1755363038908,-220.728693,0.00021917,2]
[379659719,1755363038917,-220.728693,0.00021917,2]
[379659721,1755363038926,-220.728693,0.00021917,2]
[379659723,1755363038935,-480.0,0.00021917,3]
[379659725,1755363038944,-220.728693,0.00021917,2]
[379659727,1755363038954,-220.728693,0.00021917,2]
[379659729,1755363038963,-480.0,0.00021917,3]
[379659731,1755363038972,-480.0,0.00021917,3]
[379659733,1755363038981,-220.728693,0.00021917,2]
[379659735,1755363038990,-1554.29,0.00021917,3]
[379659737,1755363038999,-843.12,0.00021917,3]
[379659739,1755363039008,-706.528377,0.00021917,2]
[379659741,1755363039018,-480.0,0.00021917,3]
[379659743,1755363039027,-480.0,0.00021917,3]
[379659745,1755363039037,-706.528377,0.00021917,2]
[379659747,1755363039046,-1337.37,0.00021917,3]
[379659749,1755363039056,-480.0,0.00021917,3]
[379659751,1755363039066,-1292.75,0.00021917,3]
[379659753,1755363039075,-480.0,0.00021917,3]
[379659755,1755363039085,-480.0,0.00021917,3]
[379659757,1755363039094,-151.0,0.00021917,2]
[379659759,1755363039103,-151.0,0.00021917,2]
[379659761,1755363039113,-480.0,0.00021917,3]
[379659762,1755363039122,-480.0,0.00021917,3]
[379659763,1755363039131,-480.0,0.00021917,3]
[379659765,1755363039142,-480.0,0.00021917,3]
[379659767,1755363039151,-460.0,0.00021917,3]
[379659768,1755363039160,-480.0,0.00021917,3]
[379659770,1755363039169,-1135.6,0.00021917,3]
[379659771,1755363039179,-480.0,0.00021917,3]
[379659773,1755363039188,-480.0,0.00021917,3]
[379659774,1755363039198,-480.0,0.00021917,3]
[379659775,1755363039207,-480.0,0.00021917,3]
[379659777,1755363039218,-480.0,0.00021917,3]
[379659778,1755363039228,-480.0,0.00021917,3]
[379659779,1755363039237,-480.0,0.00021917,3]
[379659780,1755363039246,-480.0,0.00021917,3]
[379659782,1755363039257,-480.0,0.00021917,3]
[379659783,1755363039266,-480.0,0.00021917,3]
[379659784,1755363039275,-480.0,0.00021917,3]
[379659785,1755363039285,-480.0,0.00021917,3]
[379659786,1755363039296,-480.0,0.00021917,3]
[379659788,1755363039305,-480.0,0.00021917,3]
[379659790,1755363039315,-480.0,0.00021917,3]
[379659791,1755363039324,-151.0,0.00021917,2]
[379659792,1755363039333,-480.0,0.00021917,3]
[379659793,1755363039344,-266.35004716,0.00021917,3]
[379659795,1755363039353,-138.76794705,0.00021917,3]
[379659796,1755363039370,-341.23205295,0.00021917,3]
[379659797,1755363039379,-480.0,0.00021917,3]
[379659798,1755363039388,-440.0,0.00021917,3]
[379659799,1755363039398,-480.0,0.00021917,3]
[379659800,1755363039407,-480.0,0.00021917,3]
[379659801,1755363039416,-480.0,0.00021917,3]
[379659802,1755363039427,-151.0,0.00021917,2]
[379659804,1755363039437,-691.35,0.00021917,3]
[379659805,1755363039446,-151.0,0.00021917,2]
[379659806,1755363039455,-151.0,0.00021917,2]
[379659807,1755363039464,-824.04,0.00021917,3]
[379659808,1755363039473,-480.0,0.00021917,3]
[379659809,1755363039482,-480.0,0.00021917,3]
[379659810,1755363039491,-480.0,0.00021917,3]
[379659811,1755363039500,-480.0,0.00021917,3]
[379659812,1755363039509,-153.96867778,0.00021917,3]
[379659813,1755363039518,-480.0,0.00021917,3]
[379659814,1755363039528,-480.0,0.00021917,3]
[379659815,1755363039537,-480.0,0.00021917,3]
[379659816,1755363039547,-423.34098548,0.00021917,3]
[379659817,1755363039556,-480.0,0.00021917,3]
[379659818,1755363039565,-2892.07356301,0.00021917,3]
[379659819,1755363039585,-842.64643699,0.00021917,3]
[379659820,1755363039595,-480.0,0.00021917,3]
[379659821,1755363039604,-480.0,0.00021917,3]
[379659822,1755363039613,-480.0,0.00021917,3]
[379659823,1755363039623,-480.0,0.00021917,3]
[379659824,1755363039631,-176.35356301,0.00021917,3]
[379659825,1755363039655,-303.64643699,0.00021917,3]
[379659826,1755363039664,-480.0,0.00021917,3]
[379659827,1755363039673,-199.06498157,0.00021917,3]
[379659828,1755363039683,-460.0,0.00021917,3]
[379659829,1755363039693,-480.0,0.00021917,3]
[379659830,1755363039702,-201.12070144,0.00021917,3]
[379659831,1755363039714,-913.29929856,0.00021917,3]
[379659832,1755363039723,-480.0,0.00021917,3]
[379659833,1755363039733,-157.75524937,0.00021917,3]
[379659834,1755363039746,-322.24475063,0.00021917,3]
[379659835,1755363039755,-727.14,0.00021917,3]
[379659836,1755363039765,-460.0,0.00021917,3]
[379659837,1755363039775,-480.0,0.00021917,3]
[379659838,1755363039785,-480.0,0.00021917,3]
[379659839,1755363039794,-521.36,0.00021917,3]
[379659840,1755363039804,-480.0,0.00021917,3]
[379659841,1755363039813,-480.0,0.00021917,3]
[379659842,1755363039823,-480.0,0.00021917,3]
[379659843,1755363039832,-440.0,0.00021917,3]
[379659844,1755363039841,-480.0,0.00021917,3]
[379659845,1755363039851,-480.0,0.00021917,3]
[379659846,1755363039861,-480.0,0.00021917,3]
[379659847,1755363039870,-115.25524115,0.00021917,3]
[379659848,1755363040112,-364.74475885,0.00021917,3]
[379659849,1755363040121,-480.0,0.00021917,3]
[379659850,1755363040130,-151.0,0.00021917,2]
[379659851,1755363040139,-2036.6,0.00021917,3]
[379659852,1755363040148,-184.991,0.00021917,2]
[379659853,1755363040157,-184.991,0.00021917,2]
[379659854,1755363040167,-460.0,0.00021917,3]
[379659855,1755363040175,-184.991,0.00021917,2]
[379659856,1755363040185,-184.991,0.00021917,2]
[379659857,1755363040194,-480.0,0.00021917,3]
[379659858,1755363040204,-480.0,0.00021917,3]
[379659859,1755363040213,-480.0,0.00021917,3]
[379659860,1755363040223,-480.0,0.00021917,3]
[379659861,1755363040232,-480.0,0.00021917,3]
[379659862,1755363040246,-359.45208057,0.00021917,3]
[379659863,1755363040255,-480.0,0.00021917,3]
[379659864,1755363040265,-480.0,0.00021917,3]
[379659865,1755363040275,-706.86,0.00021917,3]
[379659866,1755363040283,-1146.9,0.00021917,3]
[379659867,1755363040293,-480.0,0.00021917,3]
[379659868,1755363040302,-480.0,0.00021917,3]
[379659869,1755363040312,-1495.53,0.00021917,3]
[379659870,1755363040321,-513.52,0.00021917,3]
[379659871,1755363040331,-480.0,0.00021917,3]
[379659872,1755363040339,-480.0,0.00021917,3]
[379659873,1755363040349,-480.0,0.00021917,3]
[379659874,1755363040359,-480.0,0.00021917,3]
[379659875,1755363040368,-480.0,0.00021917,3]
[379659876,1755363040378,-480.0,0.00021917,3]
[379659877,1755363040388,-480.0,0.00021917,3]
[379659878,1755363040396,-480.0,0.00021917,3]
[379659879,1755363040406,-480.0,0.00021917,3]
[379659880,1755363040415,-480.0,0.00021917,3]
[379659881,1755363040429,-480.0,0.00021917,3]
[379659882,1755363040439,-658.15,0.00021917,3]
[379659883,1755363040449,-480.0,0.00021917,3]
[379659884,1755363040458,-460.0,0.00021917,3]